[Event "Stay Safe Play From Home 365"]
[Site "Emanuel Lasker Arena"]
[Date "2020.08.07"]
[Round "6"]
[White "Lamborghini"]
[Black "Batabat1955"]
[Result "1-0"]
[WhiteElo "2342"]
[BlackElo "1960"]
[Annotator "NA"]
[PlyCount "51"]
[EventDate "2020.08.07"]
[EventType "swiss (blitz)"]
[TimeControl "60"]

1. e4 {[%emt 0:00:01]} e6 {[%emt 0:00:01]} 2. d4 {[%emt 0:00:01]} d5 {[%emt 0:00:00]} 3. Nc3 {[%emt 0:00:00]} dxe4 {[%emt 0:00:01]} 4. Nxe4 {[%emt 0:00:01]} Be7 {[%emt 0:00:00]} 5. Nf3 {[%emt 0:00:01]} Nd7 {[%emt 0:00:00]} 6. Bd3 {[%emt 0:00:01]} Ngf6 {[%emt 0:00:02]} 7. Qe2 {[%emt 0:00:00]} Nxe4 {[%emt 0:00:01]} 8. Qxe4 {[%emt 0:00:01]} Nf6 {[%emt 0:00:01]} 9. Qe2 {[%emt 0:00:01]} O-O {[%emt 0:00:01]} 10. Bg5 {[%emt 0:00:01]} g6 {[%emt 0:00:02]} 11. h4 {[%emt 0:00:02]} c5 {[%emt 0:00:01]} 12. dxc5 {[%emt 0:00:01]} Qa5+ {[%emt 0:00:02]} 13. c3 {[%emt 0:00:00]} Qxc5 {[%emt 0:00:01]} 14. Ne5 {[%emt 0:00:01]} Nd5 {[%emt 0:00:03]} 15. Bxe7 {[%emt 0:00:01]} Nxe7 {[%emt 0:00:01]} 16. h5 {[%emt 0:00:01]} Nf5 {[%emt 0:00:01]} 17. Bxf5 {[%emt 0:00:01]} exf5 {[%emt 0:00:01]} 18. O-O-O {[%emt 0:00:01]} Re8 {[%emt 0:00:02]} 19. hxg6 {[%emt 0:00:01]} Qxe5 {[%emt 0:00:03]} 20. gxh7+ {[%emt 0:00:02]} Kh8 {[%emt 0:00:04]} 21. Qxe5+ {[%emt 0:00:01]} Rxe5 {[%emt 0:00:01]} 22. Rd8+ {[%emt 0:00:00]} Kg7 {[%emt 0:00:01]} 23. h8=Q+ {[%emt 0:00:01]} Kg6 {[%emt 0:00:01]} 24. Qxe5 {[%emt 0:00:00]} Be6 {[%emt 0:00:01]} 25. Rd6 {[%emt 0:00:03]} Re8 {[%emt 0:00:02]} 26. g4 {[%emt 0:00:01] Batabat1955 resigns (Lag: Av=0.49s, max=0.9s)} 1-0